[Event "*** Titled Tuesday Blitz AM"]
[Site "Chess.com"]
[Date "2020.01.07"]
[Round "2"]
[White "Feegus"]
[Black "garfield_pg"]
[Result "0-1"]
[WhiteElo "2557"]
[BlackElo "2351"]
[TimeControl "180+2"]
[EndTime "9:26:36 PST"]
[Termination "garfield_pg won by resignation"]

1. Nf3 {[%clk 0:02:55.9]} 1... Nf6 {[%clk 0:02:59.2]} 2. g3 {[%clk 0:02:42.3]}
2... g6 {[%clk 0:02:59.5]} 3. Bg2 {[%clk 0:02:44.2]} 3... Bg7 {[%clk 0:03:00.6]}
4. O-O {[%clk 0:02:46.1]} 4... O-O {[%clk 0:03:02.2]} 5. c4 {[%clk 0:02:48]}
5... c5 {[%clk 0:03:03.6]} 6. Nc3 {[%clk 0:02:49.7]} 6... Nc6 {[%clk 0:02:52]}
7. d4 {[%clk 0:02:46.9]} 7... cxd4 {[%clk 0:02:13.3]} 8. Nxd4 {[%clk 0:02:48.8]}
8... Nxd4 {[%clk 0:02:07.3]} 9. Qxd4 {[%clk 0:02:49.7]} 9... d6 {[%clk
0:02:09.2]} 10. Qd3 {[%clk 0:02:45.8]} 10... a6 {[%clk 0:02:09.6]} 11. e4 {[%clk
0:02:44.8]} 11... Rb8 {[%clk 0:02:10.2]} 12. a4 {[%clk 0:02:43.2]} 12... Bd7
{[%clk 0:02:03.9]} 13. a5 {[%clk 0:02:41.5]} 13... Qc7 {[%clk 0:01:52.8]} 14.
Be3 {[%clk 0:02:38.3]} 14... Be6 {[%clk 0:01:43.7]} 15. b3 {[%clk 0:02:36.9]}
15... Rfc8 {[%clk 0:01:22.5]} 16. Bb6 {[%clk 0:02:34.3]} 16... Qd7 {[%clk
0:01:23.6]} 17. Rfd1 {[%clk 0:02:29.9]} 17... Bg4 {[%clk 0:01:19.4]} 18. Rd2
{[%clk 0:02:26.8]} 18... Bh3 {[%clk 0:01:20.1]} 19. Bh1 {[%clk 0:02:27.5]} 19...
Qe8 {[%clk 0:01:13.7]} 20. Re1 {[%clk 0:02:27.9]} 20... Nd7 {[%clk 0:01:14.1]}
21. Nd5 {[%clk 0:02:28.2]} 21... Be6 {[%clk 0:01:09.7]} 22. Nc7 {[%clk
0:02:25.8]} 22... Qf8 {[%clk 0:01:10.8]} 23. f4 {[%clk 0:02:16.8]} 23... Nc5
{[%clk 0:00:57.7]} 24. Bxc5 {[%clk 0:02:13.7]} 24... Rxc7 {[%clk 0:00:29.3]} 25.
Bb6 {[%clk 0:02:14.2]} 25... Rcc8 {[%clk 0:00:30.8]} 26. e5 {[%clk 0:02:12.9]}
26... dxe5 {[%clk 0:00:30.7]} 27. fxe5 {[%clk 0:02:14.8]} 27... h5 {[%clk
0:00:19.6]} 28. h4 {[%clk 0:02:12]} 28... Bf5 {[%clk 0:00:18.7]} 29. Qd5 {[%clk
0:02:08.7]} 29... Be6 {[%clk 0:00:18.9]} 30. Qe4 {[%clk 0:02:03.3]} 30... Bf5
{[%clk 0:00:19.4]} 31. Qd4 {[%clk 0:02:01.8]} 31... Bh6 {[%clk 0:00:17.1]} 32.
Rf2 {[%clk 0:01:59.8]} 32... Qg7 {[%clk 0:00:17.4]} 33. Bd5 {[%clk 0:01:57.3]}
33... e6 {[%clk 0:00:17.4]} 34. Bf3 {[%clk 0:01:56.7]} 34... Kh7 {[%clk
0:00:18.6]} 35. Qd7 {[%clk 0:01:52.9]} 35... f6 {[%clk 0:00:16.3]} 36. Qa4
{[%clk 0:01:14.1]} 36... fxe5 {[%clk 0:00:14.1]} 37. Rd1 {[%clk 0:01:15.4]}
37... Rf8 {[%clk 0:00:11.3]} 38. c5 {[%clk 0:00:49.3]} 38... e4 {[%clk
0:00:10.7]} 39. Rd7 {[%clk 0:00:42.3]} 39... Rf7 {[%clk 0:00:09.6]} 40. Rxf7
{[%clk 0:00:41.8]} 40... Qxf7 {[%clk 0:00:11.2]} 41. Bxe4 {[%clk 0:00:43.7]}
41... Be3 {[%clk 0:00:11.5]} 42. c6 {[%clk 0:00:32.1]} 42... Bxf2+ {[%clk
0:00:10.8]} 43. Bxf2 {[%clk 0:00:34]} 43... Bxe4 {[%clk 0:00:11]} 44. Qxe4
{[%clk 0:00:35.9]} 44... bxc6 {[%clk 0:00:11.9]} 45. Qxc6 {[%clk 0:00:37.1]}
45... Rf8 {[%clk 0:00:12.2]} 46. Qc5 {[%clk 0:00:36.1]} 46... Qf3 {[%clk
0:00:11.1]} 47. b4 {[%clk 0:00:33.9]} 47... Rf7 {[%clk 0:00:12]} 48. b5 {[%clk
0:00:22.9]} 48... Qd1+ {[%clk 0:00:13.3]} 49. Kh2 {[%clk 0:00:22.2]} 49... axb5
{[%clk 0:00:13.7]} 50. a6 {[%clk 0:00:23.2]} 50... Qe2 {[%clk 0:00:13.3]} 51.
Kg1 {[%clk 0:00:23.2]} 51... Qd1+ {[%clk 0:00:13.3]} 52. Kh2 {[%clk 0:00:24.1]}
52... Qd2 {[%clk 0:00:13.7]} 53. Kg1 {[%clk 0:00:21.8]} 53... Qd5 {[%clk
0:00:09.6]} 54. Qe3 {[%clk 0:00:16.8]} 54... Qd1+ {[%clk 0:00:09.5]} 55. Kh2
{[%clk 0:00:16.3]} 55... Qc2 {[%clk 0:00:10.5]} 56. Kg2 {[%clk 0:00:16.2]} 56...
Qc6+ {[%clk 0:00:10.8]} 57. Kh2 {[%clk 0:00:15]} 57... Qxa6 {[%clk 0:00:11.2]}
58. Be1 {[%clk 0:00:15]} 58... Qa2+ {[%clk 0:00:11.9]} 59. Bd2 {[%clk
0:00:16.4]} 59... Kg8 {[%clk 0:00:08.8]} 60. Kh3 {[%clk 0:00:14.4]} 60... Qd5
{[%clk 0:00:09.4]} 61. Kh2 {[%clk 0:00:11.3]} 61... b4 {[%clk 0:00:08.1]} 62.
Bxb4 {[%clk 0:00:10.3]} 62... Qf5 {[%clk 0:00:08]} 63. Bd6 {[%clk 0:00:07.1]}
63... Qf2+ {[%clk 0:00:08.3]} 64. Qxf2 {[%clk 0:00:08.4]} 64... Rxf2+ {[%clk
0:00:10.2]} 65. Kg1 {[%clk 0:00:08]} 65... Rd2 {[%clk 0:00:11.5]} 66. Bf4 {[%clk
0:00:09.3]} 66... Rc2 {[%clk 0:00:12]} 67. Be3 {[%clk 0:00:10.8]} 67... Kf7
{[%clk 0:00:13.3]} 68. Bf2 {[%clk 0:00:12.7]} 68... Kf6 {[%clk 0:00:14.3]} 69.
Kg2 {[%clk 0:00:14.6]} 69... Kf5 {[%clk 0:00:15.7]} 70. Kf3 {[%clk 0:00:16.5]}
70... Rc3+ {[%clk 0:00:15.5]} 71. Be3 {[%clk 0:00:18.3]} 71... e5 {[%clk
0:00:17]} 72. Kf2 {[%clk 0:00:17.9]} 72... Kg4 {[%clk 0:00:17.9]} 73. Bg5 {[%clk
0:00:15.3]} 73... e4 {[%clk 0:00:17.8]} 74. Bd8 {[%clk 0:00:17.2]} 74... Rxg3
{[%clk 0:00:17.7]} 75. Ke2 {[%clk 0:00:15.9]} 75... Rh3 {[%clk 0:00:18.1]} 76.
Kf2 {[%clk 0:00:16.4]} 76... Rxh4 {[%clk 0:00:19.2]} 77. Bxh4 {[%clk 0:00:17.6]}
77... Kxh4 {[%clk 0:00:20.5]} 78. Kg2 {[%clk 0:00:19.5]} 78... Kg4 {[%clk
0:00:21.7]} 79. Kf2 {[%clk 0:00:21.2]} 79... Kf4 {[%clk 0:00:23]} 80. Kg2 {[%clk
0:00:22.9]} 80... e3 {[%clk 0:00:24.9]} 81. Kh1 {[%clk 0:00:24.8]} 81... e2
{[%clk 0:00:25.2]} 0-1

[Event "*** Titled Tuesday Blitz AM"]
[Site "Chess.com"]
[Date "2020.01.07"]
[Round "2"]
[White "GMCarbone"]
[Black "VincentBlom"]
[Result "1/2-1/2"]
[WhiteElo "2254"]
[BlackElo "2561"]
[TimeControl "180+2"]
[EndTime "9:27:46 PST"]
[Termination "Game drawn by 50-move rule"]

1. d4 {[%clk 0:03:01.9]} 1... Nf6 {[%clk 0:03:00.6]} 2. c4 {[%clk 0:03:00.6]}
2... e6 {[%clk 0:03:00.7]} 3. g3 {[%clk 0:02:56.8]} 3... d5 {[%clk 0:03:01.3]}
4. Nf3 {[%clk 0:02:56.2]} 4... dxc4 {[%clk 0:03:02.2]} 5. Bg2 {[%clk 0:02:57.8]}
5... Bd7 {[%clk 0:03:03.7]} 6. Ne5 {[%clk 0:02:21.2]} 6... Bc6 {[%clk
0:03:00.6]} 7. Nxc6 {[%clk 0:02:22.1]} 7... Nxc6 {[%clk 0:02:59.1]} 8. O-O
{[%clk 0:02:23.3]} 8... Qd7 {[%clk 0:02:59.9]} 9. e3 {[%clk 0:02:23.6]} 9... h5
{[%clk 0:02:59.1]} 10. Nd2 {[%clk 0:02:01.8]} 10... e5 {[%clk 0:02:52.9]} 11.
dxe5 {[%clk 0:01:51.4]} 11... Nxe5 {[%clk 0:02:53.4]} 12. Bxb7 {[%clk
0:01:51.1]} 12... Rb8 {[%clk 0:02:54.5]} 13. Bg2 {[%clk 0:01:51.6]} 13... h4
{[%clk 0:02:54.2]} 14. Qc2 {[%clk 0:01:50]} 14... Qd3 {[%clk 0:02:52.4]} 15.
Qxd3 {[%clk 0:01:46.1]} 15... cxd3 {[%clk 0:02:53.2]} 16. b3 {[%clk 0:01:45.2]}
16... hxg3 {[%clk 0:02:51.3]} 17. hxg3 {[%clk 0:01:45.6]} 17... Bb4 {[%clk
0:02:51.9]} 18. Rd1 {[%clk 0:01:41]} 18... Bc3 {[%clk 0:02:43.7]} 19. Rb1 {[%clk
0:01:40.1]} 19... c5 {[%clk 0:02:35.1]} 20. Ba3 {[%clk 0:01:19.7]} 20... Bxd2
{[%clk 0:02:23.5]} 21. Rxd2 {[%clk 0:00:59.5]} 21... Nc4 {[%clk 0:01:45.3]} 22.
Bc6+ {[%clk 0:00:58.1]} 22... Kd8 {[%clk 0:01:44.6]} 23. Rxd3+ {[%clk
0:00:56.9]} 23... Kc7 {[%clk 0:01:45.9]} 24. Bxc5 {[%clk 0:00:37.5]} 24... Kxc6
{[%clk 0:01:33.5]} 25. Bxa7 {[%clk 0:00:36.2]} 25... Rb7 {[%clk 0:01:25]} 26.
Rc1 {[%clk 0:00:35.3]} 26... Rxa7 {[%clk 0:01:23.8]} 27. Rxc4+ {[%clk
0:00:36.2]} 27... Kb7 {[%clk 0:01:25.3]} 28. a4 {[%clk 0:00:36.9]} 28... Rc8
{[%clk 0:01:21.4]} 29. Rxc8 {[%clk 0:00:36.8]} 29... Kxc8 {[%clk 0:01:22.4]} 30.
Kg2 {[%clk 0:00:38.3]} 30... Rb7 {[%clk 0:01:23.1]} 31. f3 {[%clk 0:00:39.3]}
31... Nd7 {[%clk 0:01:24.3]} 32. Rc3+ {[%clk 0:00:39.5]} 32... Kd8 {[%clk
0:01:24.5]} 33. e4 {[%clk 0:00:38.5]} 33... Ke7 {[%clk 0:01:25.9]} 34. f4 {[%clk
0:00:39.6]} 34... Kd6 {[%clk 0:01:27.1]} 35. Kf3 {[%clk 0:00:39.4]} 35... Nc5
{[%clk 0:01:26.3]} 36. e5+ {[%clk 0:00:40.3]} 36... Kd5 {[%clk 0:01:27.3]} 37.
a5 {[%clk 0:00:39.5]} 37... Nxb3 {[%clk 0:01:21.8]} 38. a6 {[%clk 0:00:39.7]}
38... Nd4+ {[%clk 0:01:22.9]} 39. Kg4 {[%clk 0:00:40.7]} 39... Ra7 {[%clk
0:01:22.7]} 40. Ra3 {[%clk 0:00:32.2]} 40... g6 {[%clk 0:01:22.4]} 41. Kg5
{[%clk 0:00:32.4]} 41... Ke6 {[%clk 0:01:23.7]} 42. Rd3 {[%clk 0:00:28.3]} 42...
Nf5 {[%clk 0:01:15.7]} 43. g4 {[%clk 0:00:25.7]} 43... Ng7 {[%clk 0:01:14.6]}
44. Rd6+ {[%clk 0:00:26]} 44... Ke7 {[%clk 0:01:16]} 45. f5 {[%clk 0:00:26.7]}
45... gxf5 {[%clk 0:01:16.8]} 46. gxf5 {[%clk 0:00:28.3]} 46... Ne8 {[%clk
0:01:18.1]} 47. f6+ {[%clk 0:00:28.5]} 47... Kf8 {[%clk 0:01:17.6]} 48. Rc6
{[%clk 0:00:21.1]} 48... Rd7 {[%clk 0:01:17.3]} 49. e6 {[%clk 0:00:20.3]} 49...
Rd5+ {[%clk 0:01:09.3]} 50. Kf4 {[%clk 0:00:20.2]} 50... fxe6 {[%clk 0:01:09.5]}
51. Rxe6 {[%clk 0:00:20.6]} 51... Ra5 {[%clk 0:01:11.4]} 52. Rb6 {[%clk
0:00:17.3]} 52... Kf7 {[%clk 0:01:10.3]} 53. Rb7+ {[%clk 0:00:18.7]} 53... Kxf6
{[%clk 0:01:09.2]} 54. a7 {[%clk 0:00:20.2]} 54... Nd6 {[%clk 0:01:09.8]} 55.
Rb6 {[%clk 0:00:19.2]} 55... Ke6 {[%clk 0:01:09.9]} 56. Ke3 {[%clk 0:00:19.1]}
56... Rxa7 {[%clk 0:01:11.3]} 57. Rb8 {[%clk 0:00:20.3]} 57... Ra3+ {[%clk
0:01:10.8]} 58. Kd4 {[%clk 0:00:20.1]} 58... Ra4+ {[%clk 0:01:12.2]} 59. Kc3
{[%clk 0:00:20.2]} 59... Kd5 {[%clk 0:01:13.6]} 60. Rd8 {[%clk 0:00:20]} 60...
Ra3+ {[%clk 0:01:13.1]} 61. Kb4 {[%clk 0:00:21.1]} 61... Rh3 {[%clk 0:01:13.7]}
62. Rg8 {[%clk 0:00:19]} 62... Rh1 {[%clk 0:01:14]} 63. Rg5+ {[%clk 0:00:19.7]}
63... Kd4 {[%clk 0:01:15.6]} 64. Rg4+ {[%clk 0:00:20.1]} 64... Ne4 {[%clk
0:01:17]} 65. Kb5 {[%clk 0:00:21.9]} 65... Rc1 {[%clk 0:01:18.3]} 66. Kb6 {[%clk
0:00:22.4]} 66... Kd5 {[%clk 0:01:19.4]} 67. Rh4 {[%clk 0:00:22.8]} 67... Nc5
{[%clk 0:01:16.6]} 68. Rh5+ {[%clk 0:00:23.1]} 68... Kd6 {[%clk 0:01:18.1]} 69.
Rh6+ {[%clk 0:00:24]} 69... Ne6 {[%clk 0:01:19.6]} 70. Kb5 {[%clk 0:00:25.4]}
70... Rc5+ {[%clk 0:01:20]} 71. Kb4 {[%clk 0:00:26.1]} 71... Re5 {[%clk
0:01:20.9]} 72. Kc3 {[%clk 0:00:25.5]} 72... Re3+ {[%clk 0:01:21.2]} 73. Kd2
{[%clk 0:00:24]} 73... Ra3 {[%clk 0:01:21.2]} 74. Rg6 {[%clk 0:00:24.8]} 74...
Kd5 {[%clk 0:01:21.8]} 75. Rh6 {[%clk 0:00:25.7]} 75... Nf4 {[%clk 0:01:22.4]}
76. Rh4 {[%clk 0:00:25.8]} 76... Ke4 {[%clk 0:01:23.2]} 77. Rh8 {[%clk
0:00:26.6]} 77... Kd4 {[%clk 0:01:22.1]} 78. Rd8+ {[%clk 0:00:26.4]} 78... Nd5
{[%clk 0:01:22.9]} 79. Ke2 {[%clk 0:00:27.8]} 79... Ra7 {[%clk 0:01:20.9]} 80.
Kf3 {[%clk 0:00:27.9]} 80... Rg7 {[%clk 0:01:21.4]} 81. Kf2 {[%clk 0:00:26.6]}
81... Ke4 {[%clk 0:01:20.1]} 82. Re8+ {[%clk 0:00:27.5]} 82... Ne7 {[%clk
0:01:21.6]} 83. Ra8 {[%clk 0:00:23]} 83... Rh7 {[%clk 0:01:22.7]} 84. Ra4+
{[%clk 0:00:23.4]} 84... Ke5 {[%clk 0:01:23.6]} 85. Ra5+ {[%clk 0:00:24.4]}
85... Nd5 {[%clk 0:01:24.6]} 86. Kf3 {[%clk 0:00:25.4]} 86... Rh3+ {[%clk
0:01:25.3]} 87. Kg4 {[%clk 0:00:26.4]} 87... Rd3 {[%clk 0:01:24.9]} 88. Rb5
{[%clk 0:00:19.8]} 88... Ra3 {[%clk 0:01:26.2]} 89. Rb8 {[%clk 0:00:19.9]} 89...
Nf6+ {[%clk 0:01:26.2]} 90. Kg5 {[%clk 0:00:20]} 90... Rg3+ {[%clk 0:01:27.3]}
91. Kh4 {[%clk 0:00:20.7]} 91... Rg1 {[%clk 0:01:26.3]} 92. Rb5+ {[%clk
0:00:21]} 92... Ke4 {[%clk 0:01:27.3]} 93. Rb4+ {[%clk 0:00:21.6]} 93... Kf5
{[%clk 0:01:28.7]} 94. Rb5+ {[%clk 0:00:22.3]} 94... Kf4 {[%clk 0:01:30.1]} 95.
Rb4+ {[%clk 0:00:23]} 95... Ne4 {[%clk 0:01:31.5]} 96. Kh5 {[%clk 0:00:23.6]}
96... Rg8 {[%clk 0:01:31.4]} 97. Kh6 {[%clk 0:00:24.4]} 97... Kf5 {[%clk
0:01:30.6]} 98. Rb5+ {[%clk 0:00:24.5]} 98... Ke6 {[%clk 0:01:31.4]} 99. Rb6+
{[%clk 0:00:25.1]} 99... Nd6 {[%clk 0:01:32.6]} 100. Kh5 {[%clk 0:00:25.9]}
100... Rg1 {[%clk 0:01:31.2]} 101. Kh4 {[%clk 0:00:25.4]} 101... Ke5 {[%clk
0:01:32]} 102. Ra6 {[%clk 0:00:25.1]} 102... Kf4 {[%clk 0:01:32.2]} 103. Ra4+
{[%clk 0:00:25.8]} 103... Ne4 {[%clk 0:01:33.2]} 104. Kh5 {[%clk 0:00:26.3]}
104... Kf5 {[%clk 0:01:32.3]} 105. Ra5+ {[%clk 0:00:26.2]} 105... Kf6 {[%clk
0:01:33.3]} 106. Ra6+ {[%clk 0:00:26.9]} 106... Ke5 {[%clk 0:01:31.7]} 1/2-1/2

[Event "*** Titled Tuesday Blitz AM"]
[Site "Chess.com"]
[Date "2020.01.07"]
[Round "3"]
[White "calemcc"]
[Black "JSPrepz"]
[Result "0-1"]
[WhiteElo "2483"]
[BlackElo "2805"]
[TimeControl "180+2"]
[EndTime "9:31:59 PST"]
[Termination "JSPrepz won by resignation"]

1. d4 {[%clk 0:03:01.9]} 1... Nf6 {[%clk 0:03:00.6]} 2. c4 {[%clk 0:03:01.3]}
2... c5 {[%clk 0:03:01.8]} 3. Nf3 {[%clk 0:03:02]} 3... cxd4 {[%clk 0:03:02.8]}
4. Nxd4 {[%clk 0:03:03.9]} 4... e5 {[%clk 0:03:04.7]} 5. Nb5 {[%clk 0:03:04.6]}
5... d5 {[%clk 0:03:06.2]} 6. cxd5 {[%clk 0:03:05.5]} 6... Bb4+ {[%clk 0:03:08]}
7. N5c3 {[%clk 0:03:04.7]} 7... Nxd5 {[%clk 0:03:06.9]} 8. Bd2 {[%clk
0:03:01.6]} 8... Nc6 {[%clk 0:03:05]} 9. Nxd5 {[%clk 0:02:58.4]} 9... Qxd5
{[%clk 0:03:05.6]} 10. Nc3 {[%clk 0:02:58.4]} 10... Qe6 {[%clk 0:03:05.5]} 11.
e3 {[%clk 0:02:54]} 11... Qg6 {[%clk 0:03:05]} 12. Qf3 {[%clk 0:02:44.1]} 12...
O-O {[%clk 0:03:01.6]} 13. Bb5 {[%clk 0:02:39.5]} 13... Rd8 {[%clk 0:02:41.2]}
14. a3 {[%clk 0:02:24.7]} 14... Ba5 {[%clk 0:02:39.6]} 15. Rd1 {[%clk
0:02:24.1]} 15... Bg4 {[%clk 0:02:38.8]} 16. Bxc6 {[%clk 0:02:06.3]} 16... Bxf3
{[%clk 0:02:34.3]} 17. Bxf3 {[%clk 0:02:08.2]} 17... Qc2 {[%clk 0:02:28.2]} 18.
b4 {[%clk 0:02:06.9]} 18... Rxd2 {[%clk 0:02:20.7]} 19. Rxd2 {[%clk 0:02:06.5]}
19... Qxc3 {[%clk 0:02:21.4]} 0-1

[Event "*** Titled Tuesday Blitz AM"]
[Site "Chess.com"]
[Date "2020.01.07"]
[Round "3"]
[White "SiddharthGMJagadeesh"]
[Black "ChessFunMaker"]
[Result "1-0"]
[WhiteElo "2558"]
[BlackElo "2352"]
[TimeControl "180+2"]
[EndTime "9:32:18 PST"]
[Termination "SiddharthGMJagadeesh won by resignation"]

1. d4 {[%clk 0:03:01.9]} 1... Nf6 {[%clk 0:03:00.8]} 2. c4 {[%clk 0:03:00.5]}
2... g6 {[%clk 0:03:02]} 3. Nc3 {[%clk 0:03:01.4]} 3... Bg7 {[%clk 0:03:03.7]}
4. e4 {[%clk 0:03:02.6]} 4... O-O {[%clk 0:03:05.4]} 5. f4 {[%clk 0:03:04]} 5...
d6 {[%clk 0:03:03.1]} 6. Nf3 {[%clk 0:03:05.2]} 6... c5 {[%clk 0:03:01.1]} 7.
dxc5 {[%clk 0:03:06.5]} 7... Qa5 {[%clk 0:02:58.3]} 8. Bd3 {[%clk 0:03:07.4]}
8... Qxc5 {[%clk 0:02:54.9]} 9. Qe2 {[%clk 0:03:07.8]} 9... Nc6 {[%clk 0:02:43]}
10. Be3 {[%clk 0:03:08.5]} 10... Qa5 {[%clk 0:02:43.5]} 11. O-O {[%clk 0:03:09]}
11... Ng4 {[%clk 0:02:27.2]} 12. Bd2 {[%clk 0:03:09.8]} 12... Qb6+ {[%clk
0:02:26.9]} 13. Kh1 {[%clk 0:03:10.9]} 13... Nd4 {[%clk 0:02:27.5]} 14. Nxd4
{[%clk 0:03:03.7]} 14... Bxd4 {[%clk 0:02:22]} 15. Nd5 {[%clk 0:02:44.8]} 15...
Qd8 {[%clk 0:02:20.9]} 16. Bc3 {[%clk 0:02:17.6]} 16... Bxc3 {[%clk 0:02:08.7]}
17. Nxc3 {[%clk 0:02:19.1]} 17... e6 {[%clk 0:01:59.5]} 18. Qxg4 {[%clk
0:02:16.4]} 1-0

[Event "*** Titled Tuesday Blitz AM"]
[Site "Chess.com"]
[Date "2020.01.07"]
[Round "3"]
[White "Korona_91"]
[Black "BestByTestbro"]
[Result "1-0"]
[WhiteElo "2565"]
[BlackElo "2181"]
[TimeControl "180+2"]
[EndTime "9:33:19 PST"]
[Termination "Korona_91 won by resignation"]

1. e4 {[%clk 0:03:00.4]} 1... c5 {[%clk 0:03:00.5]} 2. Nf3 {[%clk 0:03:00.6]}
2... d6 {[%clk 0:03:01.7]} 3. Bb5+ {[%clk 0:03:00]} 3... Nd7 {[%clk 0:03:02.7]}
4. a4 {[%clk 0:03:00.9]} 4... Nf6 {[%clk 0:03:02.6]} 5. Nc3 {[%clk 0:02:57]}
5... a6 {[%clk 0:02:58.2]} 6. Bc4 {[%clk 0:02:57.1]} 6... e6 {[%clk 0:02:59]} 7.
O-O {[%clk 0:02:57.1]} 7... Be7 {[%clk 0:02:56.7]} 8. d4 {[%clk 0:02:54.8]} 8...
cxd4 {[%clk 0:02:57.4]} 9. Nxd4 {[%clk 0:02:56.2]} 9... Qc7 {[%clk 0:02:58.4]}
10. Bxe6 {[%clk 0:02:48.5]} 10... fxe6 {[%clk 0:02:57.8]} 11. Nxe6 {[%clk
0:02:49.8]} 11... Qc4 {[%clk 0:02:55.5]} 12. Nxg7+ {[%clk 0:02:49.4]} 12... Kf8
{[%clk 0:02:56.7]} 13. Bh6 {[%clk 0:02:46.5]} 13... Kg8 {[%clk 0:02:50.1]} 14.
Nf5 {[%clk 0:02:44.9]} 14... Bf8 {[%clk 0:02:46.5]} 15. Bxf8 {[%clk 0:02:45.2]}
15... Nxf8 {[%clk 0:02:48.4]} 16. Qxd6 {[%clk 0:02:37.4]} 16... Qe6 {[%clk
0:02:38.1]} 17. Qg3+ {[%clk 0:02:08.3]} 17... Ng6 {[%clk 0:02:32.9]} 18. Rad1
{[%clk 0:02:06.7]} 18... Nxe4 {[%clk 0:01:57.9]} 19. Rd8+ {[%clk 0:01:59.7]}
19... Kf7 {[%clk 0:01:59.1]} 20. Nxe4 {[%clk 0:01:59.5]} 1-0

[Event "*** Titled Tuesday Blitz AM"]
[Site "Chess.com"]
[Date "2020.01.07"]
[Round "3"]
[White "Kirill_Klukin"]
[Black "gmcorrales"]
[Result "0-1"]
[WhiteElo "2698"]
[BlackElo "2868"]
[TimeControl "180+2"]
[EndTime "9:33:25 PST"]
[Termination "gmcorrales won by resignation"]

1. d4 {[%clk 0:03:01.9]} 1... Nf6 {[%clk 0:03:00.6]} 2. Nf3 {[%clk 0:03:03.1]}
2... g6 {[%clk 0:02:53.9]} 3. e3 {[%clk 0:03:03]} 3... Bg7 {[%clk 0:02:54.5]} 4.
Be2 {[%clk 0:03:04.3]} 4... O-O {[%clk 0:02:55.6]} 5. O-O {[%clk 0:03:05.9]}
5... b6 {[%clk 0:02:55.4]} 6. c4 {[%clk 0:03:07]} 6... Bb7 {[%clk 0:02:54.2]} 7.
Nc3 {[%clk 0:03:08.4]} 7... d5 {[%clk 0:02:54]} 8. cxd5 {[%clk 0:03:06.7]} 8...
Nxd5 {[%clk 0:02:55.9]} 9. Bd2 {[%clk 0:03:08.6]} 9... e6 {[%clk 0:02:50.5]} 10.
Rc1 {[%clk 0:03:09.2]} 10... Nd7 {[%clk 0:02:51]} 11. Bb5 {[%clk 0:02:22.2]}
11... c5 {[%clk 0:02:38.6]} 12. Bxd7 {[%clk 0:02:22.7]} 12... Qxd7 {[%clk
0:02:40.5]} 13. dxc5 {[%clk 0:02:23.9]} 13... bxc5 {[%clk 0:02:41.7]} 14. Na4
{[%clk 0:02:15.7]} 14... c4 {[%clk 0:02:36.7]} 15. Bc3 {[%clk 0:02:10]} 15...
Bc6 {[%clk 0:02:33.2]} 16. Nc5 {[%clk 0:02:07.6]} 16... Nxc3 {[%clk 0:02:33.9]}
17. Nxd7 {[%clk 0:01:42.8]} 17... Nxd1 {[%clk 0:02:30.4]} 18. Rfxd1 {[%clk
0:01:37.7]} 18... Rfd8 {[%clk 0:02:04.5]} 19. Nfe5 {[%clk 0:01:16.3]} 19... Ba4
{[%clk 0:02:01.4]} 20. Rd4 {[%clk 0:01:01.9]} 20... Bxd7 {[%clk 0:02:01.9]} 0-1

[Event "*** Titled Tuesday Blitz AM"]
[Site "Chess.com"]
[Date "2020.01.07"]
[Round "3"]
[White "viktorskliarov"]
[Black "alishersuleymenov"]
[Result "0-1"]
[WhiteElo "2596"]
[BlackElo "2815"]
[TimeControl "180+2"]
[EndTime "9:33:28 PST"]
[Termination "alishersuleymenov won by resignation"]

1. e4 {[%clk 0:03:01.9]} 1... c5 {[%clk 0:03:00]} 2. Nf3 {[%clk 0:03:02.8]} 2...
e6 {[%clk 0:03:01.5]} 3. c3 {[%clk 0:03:03.2]} 3... d5 {[%clk 0:03:02]} 4. e5
{[%clk 0:03:04.1]} 4... Nc6 {[%clk 0:03:03.2]} 5. d4 {[%clk 0:03:05.1]} 5... Qb6
{[%clk 0:03:04.2]} 6. a3 {[%clk 0:03:05.9]} 6... Nh6 {[%clk 0:03:05.7]} 7. b4
{[%clk 0:03:06.2]} 7... cxd4 {[%clk 0:03:07.2]} 8. Bxh6 {[%clk 0:03:07.7]} 8...
gxh6 {[%clk 0:03:07.8]} 9. cxd4 {[%clk 0:03:09.3]} 9... Bg7 {[%clk 0:03:09.3]}
10. Nc3 {[%clk 0:03:09.8]} 10... O-O {[%clk 0:03:10.7]} 11. Na4 {[%clk
0:03:05.5]} 11... Qd8 {[%clk 0:03:09.9]} 12. Bd3 {[%clk 0:03:04.3]} 12... f6
{[%clk 0:03:11.2]} 13. b5 {[%clk 0:03:05]} 13... Qa5+ {[%clk 0:03:01.6]} 14. Qd2
{[%clk 0:02:29.6]} 14... Qxa4 {[%clk 0:02:49.1]} 15. bxc6 {[%clk 0:02:30.5]}
15... bxc6 {[%clk 0:02:50.8]} 16. exf6 {[%clk 0:02:30.6]} 16... Rxf6 {[%clk
0:02:45.1]} 17. O-O {[%clk 0:02:31.4]} 17... Rxf3 {[%clk 0:02:25.1]} 18. gxf3
{[%clk 0:02:30]} 18... Qxd4 {[%clk 0:02:26.1]} 19. Rad1 {[%clk 0:02:12.1]} 19...
Qf6 {[%clk 0:02:13]} 20. Qc2 {[%clk 0:02:05.7]} 20... Bd7 {[%clk 0:02:13.7]} 21.
Bxh7+ {[%clk 0:02:01.9]} 21... Kh8 {[%clk 0:02:14.9]} 22. f4 {[%clk 0:01:53.2]}
22... Qxf4 {[%clk 0:02:11.7]} 23. Rfe1 {[%clk 0:01:42.2]} 23... e5 {[%clk
0:02:01.3]} 24. Qg6 {[%clk 0:01:34.6]} 24... Rf8 {[%clk 0:01:58.4]} 0-1

[Event "*** Titled Tuesday Blitz AM"]
[Site "Chess.com"]
[Date "2020.01.07"]
[Round "3"]
[White "Grieve72"]
[Black "IMRosen"]
[Result "1-0"]
[WhiteElo "2297"]
[BlackElo "2564"]
[TimeControl "180+2"]
[EndTime "9:33:29 PST"]
[Termination "Grieve72 won by checkmate"]

1. d4 {[%clk 0:03:01.9]} 1... d5 {[%clk 0:02:58.7]} 2. Bg5 {[%clk 0:03:02.6]}
2... f6 {[%clk 0:02:58]} 3. Bh4 {[%clk 0:03:03.5]} 3... Nh6 {[%clk 0:02:59.1]}
4. e3 {[%clk 0:03:05]} 4... Nf5 {[%clk 0:02:58.7]} 5. Bg3 {[%clk 0:03:06]} 5...
h5 {[%clk 0:02:46]} 6. Be2 {[%clk 0:03:07.3]} 6... h4 {[%clk 0:02:27.8]} 7. Bh5+
{[%clk 0:03:08.3]} 7... Kd7 {[%clk 0:02:25]} 8. Bf4 {[%clk 0:03:09.8]} 8... g5
{[%clk 0:02:23.1]} 9. e4 {[%clk 0:03:11.3]} 9... dxe4 {[%clk 0:02:16.7]} 10. d5
{[%clk 0:03:13.2]} 10... gxf4 {[%clk 0:02:01.7]} 11. Bg4 {[%clk 0:03:14.1]}
11... Ke8 {[%clk 0:01:11.7]} 12. Bh5+ {[%clk 0:03:15.1]} 12... Kd7 {[%clk
0:01:10.8]} 13. Bg4 {[%clk 0:03:17]} 13... e6 {[%clk 0:00:22.7]} 14. dxe6+
{[%clk 0:03:18.9]} 14... Kxe6 {[%clk 0:00:24]} 15. Qxd8 {[%clk 0:03:19.9]} 15...
Bb4+ {[%clk 0:00:25.6]} 16. Qd2 {[%clk 0:03:21.6]} 16... Bxd2+ {[%clk
0:00:27.1]} 17. Nxd2 {[%clk 0:03:23.5]} 17... Ke5 {[%clk 0:00:24.2]} 18. O-O-O
{[%clk 0:03:16.4]} 18... Nd6 {[%clk 0:00:24.8]} 19. Ndf3+ {[%clk 0:02:50.6]}
19... exf3 {[%clk 0:00:09.2]} 20. Nxf3+ {[%clk 0:02:52.5]} 20... Ke4 {[%clk
0:00:10.5]} 21. Rhe1# {[%clk 0:02:54.4]} 1-0